bitfinex/quotes_BTCUSD_20250515
["timestamp","ask_amount","ask_price","bid_price","bid_amount"]
[1747320976455,0.0001446,101970.0,101960.0,1.78605641]
[1747320976676,0.0001446,101970.0,101960.0,1.42886909]
[1747320976838,0.0001446,101970.0,101960.0,1.41432824]
[1747320977083,0.2256992,101970.0,101960.0,0.93660343]
[1747320977441,0.225699,101970.0,101960.0,1.69707367]
[1747320977637,0.01975667,101970.0,101960.0,1.73668814]
[1747320977797,0.20608665,101970.0,101960.0,1.38950072]
[1747320977970,0.22569881,101970.0,101960.0,1.72688095]
[1747320978179,0.0295627,101970.0,101960.0,1.73668804]
[1747320978405,0.0295627,101970.0,101960.0,1.38950072]
[1747320978578,0.00995054,101970.0,101960.0,1.73664804]
[1747320978773,0.01975667,101970.0,101960.0,1.73764804]
[1747320979826,0.2355059,101970.0,101960.0,1.13276814]
[1747320980029,0.01975667,101970.0,101960.0,1.38745523]
[1747320980793,0.02956299,101970.0,101960.0,1.40705523]
[1747320980998,0.01975667,101970.0,101960.0,1.38745523]
[1747320981138,0.00995063,101970.0,101960.0,1.05976791]
[1747320981340,0.00995063,101970.0,101960.0,1.40695523]
[1747320981549,0.01975685,101970.0,101960.0,1.40695523]
[1747320981751,0.00995063,101970.0,101960.0,1.40695523]
[1747320982545,0.01975676,101970.0,101960.0,1.05976791]
[1747320982779,0.01975676,101970.0,101960.0,1.40695523]
[1747320982780,0.00995073,101970.0,101960.0,1.40695523]
[1747320982969,0.01975676,101970.0,101960.0,1.06695523]
[1747320983177,0.01975676,101970.0,101960.0,0.70026791]
[1747320983808,0.02956327,101970.0,101960.0,1.01080635]
[1747320984047,0.02956327,101970.0,101960.0,0.83049686]
[1747320984262,0.02956318,101970.0,101960.0,1.43233127]
[1747320984806,0.45941374,101970.0,101960.0,0.7524494]
[1747320985015,0.49911374,101970.0,101960.0,0.7524494]
[1747320985220,0.49911374,101970.0,101960.0,0.001]
[1747320985734,0.83911374,101970.0,101960.0,0.001]
[1747320985942,0.83911374,101970.0,101960.0,0.008]
[1747320986067,0.93642314,101970.0,101960.0,0.007]
[1747320986267,0.22606292,101960.0,101950.0,0.24348]
[1747320986536,0.21581272,101940.0,101930.0,0.74428047]
[1747320986722,0.23591272,101940.0,101930.0,0.6674]
[1747320986924,0.03924471,101920.0,101910.0,0.245047]
[1747320987098,0.28264452,101920.0,101910.0,0.5858364]
[1747320987306,0.23589383,101940.0,101910.0,0.5858364]
[1747320987307,0.23589383,101940.0,101910.0,0.89377535]
[1747320987509,0.26302034,101930.0,101920.0,0.22566602]
[1747320987869,0.47885414,101930.0,101920.0,0.21585508]
[1747320988051,0.00981103,101920.0,101910.0,1.02052112]
[1747320988348,0.0294331,101920.0,101910.0,0.6860244]
[1747320988500,0.23547685,101920.0,101910.0,0.55663196]
[1747320988708,0.21585507,101920.0,101910.0,0.3407894]
[1747320988919,0.21585507,101920.0,101910.0,0.56647823]
[1747320989122,0.21585507,101920.0,101910.0,0.54785356]
[1747320989351,0.21585507,101920.0,101910.0,0.55766604]
[1747320989955,0.20604375,101920.0,101910.0,0.56747794]
[1747320990149,0.22566591,101920.0,101910.0,0.55766585]
[1747320990400,0.22566591,101920.0,101910.0,0.56747814]
[1747320990923,0.20604375,101920.0,101910.0,0.55766576]
[1747320991935,0.20604375,101920.0,101910.0,0.56747795]
[1747320992105,0.20604375,101920.0,101910.0,0.57729004]
[1747320992311,0.20604375,101920.0,101910.0,0.55766576]
[1747320992514,0.20604375,101920.0,101910.0,0.54785347]
[1747320992890,0.20604375,101920.0,101910.0,0.3417894]
[1747320993094,0.20604375,101920.0,101910.0,0.54785347]
[1747320993357,0.20396716,101920.0,101910.0,0.54714397]
[1747320993791,0.20396716,101920.0,101910.0,0.68826722]
[1747320993997,0.20396716,101920.0,101910.0,0.3410799]
[1747320994210,0.20396716,101920.0,101910.0,0.0975999]
[1747320994421,0.20396716,101920.0,101910.0,0.3411199]
[1747320995451,0.22466716,101920.0,101910.0,0.0975999]
[1747320995587,0.22466716,101920.0,101910.0,0.001]
[1747320995588,0.24436716,101920.0,101910.0,0.001]
[1747320995801,0.25428398,101920.0,101910.0,0.001]
[1747320996008,0.24436716,101920.0,101910.0,0.001]
[1747320996251,0.20606397,101910.0,101900.0,0.25333354]
[1747320996426,0.20606397,101910.0,101900.0,0.3408294]
[1747320996832,0.2060842,101900.0,101890.0,0.66724]
[1747320997033,0.2060842,101900.0,101890.0,0.87348926]
[1747320997034,0.45901745,101900.0,101890.0,0.87348926]
[1747320997210,0.45901745,101900.0,101890.0,1.23049089]
[1747320997656,0.45901745,101900.0,101890.0,1.25993285]
[1747320997861,0.46883099,101900.0,101890.0,1.25011902]
[1747320998067,0.46883099,101900.0,101890.0,1.34742842]
[1747320998440,0.27256004,101900.0,101890.0,1.34742842]
[1747320998637,0.27255956,101900.0,101890.0,1.35724225]
[1747320998841,0.22568854,101910.0,101900.0,0.22571079]
[1747320999044,0.22568854,101910.0,101900.0,0.58271117]
[1747320999045,0.46872854,101910.0,101900.0,0.58271117]
[1747320999247,0.46872854,101910.0,101900.0,0.68983343]
[1747320999443,0.47446111,101910.0,101900.0,0.68983343]
[1747320999730,0.47446111,101910.0,101900.0,0.68002057]
[1747321000131,0.47446111,101910.0,101900.0,0.68983353]
[1747321000926,0.47446111,101910.0,101900.0,0.68002057]
[1747321001126,0.46464902,101910.0,101900.0,0.32302019]
[1747321001413,0.46464902,101910.0,101900.0,0.33283325]
[1747321002538,0.46464902,101910.0,101900.0,0.31320714]
[1747321002742,0.46464902,101910.0,101900.0,0.32302039]
[1747321003105,0.46464902,101910.0,101900.0,0.33283354]
[1747321005532,0.46872786,101910.0,101900.0,0.71053314]
[1747321005894,0.47854043,101910.0,101900.0,0.68002028]
[1747321007636,0.0098118,101910.0,101900.0,0.68983314]
[1747321007895,0.0098118,101910.0,101900.0,0.73043314]
[1747321007896,0.26230389,101910.0,101900.0,0.73043314]
[1747321008053,0.2623038,101910.0,101900.0,0.73043314]
[1747321008376,0.28192827,101910.0,101900.0,0.73043314]
[1747321009213,0.47817986,101910.0,101900.0,0.73043314]
[1747321009412,0.28192827,101910.0,101900.0,0.73043314]
[1747321009840,0.48799243,101910.0,101900.0,0.73043314]
[1747321010041,0.48799243,101910.0,101900.0,0.33283296]
[1747321010875,0.47818063,101910.0,101900.0,0.33283296]
[1747321012267,0.46836863,101910.0,101900.0,0.32302]
[1747321012848,0.46836863,101910.0,101900.0,0.33283296]
[1747321013275,0.55561308,101930.0,101910.0,0.00981171]
[1747321013442,0.45829488,101920.0,101910.0,0.65284459]
[1747321013646,0.46810649,101920.0,101910.0,0.91410694]
[1747321013855,0.46810649,101920.0,101910.0,0.55710753]
[1747321014233,0.46810649,101920.0,101910.0,0.32234887]
[1747321014435,0.44848394,101920.0,101910.0,0.32234887]
[1747321016069,0.44848394,101920.0,101910.0,0.32106887]
[1747321016491,0.44848394,101920.0,101910.0,0.52713294]
[1747321016692,0.44848394,101920.0,101910.0,0.53694523]
[1747321016986,0.00981103,101920.0,101910.0,1.04126594]
[1747321017196,0.46794524,101920.0,101910.0,1.03145404]
[1747321017617,0.46790524,101920.0,101910.0,1.03145404]
[1747321017840,0.03924433,101920.0,101910.0,1.04126594]
[1747321018193,0.25205075,101920.0,101910.0,1.04126594]
[1747321018322,0.02943051,101930.0,101920.0,0.24566602]
[1747321018523,0.27163051,101930.0,101920.0,0.60773394]
[1747321018736,0.27163051,101930.0,101920.0,0.62773394]
[1747321019140,0.19619383,101940.0,101920.0,0.62773394]
[1747321019141,0.21581214,101940.0,101930.0,0.20602363]
[1747321019323,0.45797262,101940.0,101930.0,0.55321095]
[1747321019525,0.45797262,101940.0,101930.0,0.20602363]
[1747321019766,0.44816332,101940.0,101930.0,0.29814924]
[1747321020017,0.44816332,101940.0,101930.0,0.71536744]
[1747321020018,0.46774212,101940.0,101930.0,0.71536744]
[1747321020129,0.46774212,101940.0,101930.0,0.70555737]
[1747321020341,0.00980892,101940.0,101930.0,0.71524151]
[1747321020547,0.01961697,101950.0,101940.0,0.24602183]
[1747321020758,0.26188151,101950.0,101940.0,0.93279855]
[1747321020968,0.00014454,101950.0,101940.0,1.40710428]
[1747321021400,0.00014454,101950.0,101940.0,1.05991696]
[1747321021606,0.00014454,101950.0,101940.0,1.42164513]
[1747321021826,0.00014454,101950.0,101940.0,0.72727049]
[1747321022035,0.0099524,101950.0,101940.0,1.42164513]
[1747321022248,0.0099524,101950.0,101940.0,1.07445781]
[1747321022673,0.00014454,101950.0,101940.0,1.07445781]
[1747321022878,0.00014454,101950.0,101940.0,1.41445781]
[1747321023298,0.0099525,101950.0,101940.0,1.76164513]
[1747321023507,0.0099525,101950.0,101940.0,1.87164513]
[1747321023714,0.00014454,101950.0,101940.0,1.87164513]
[1747321023927,0.0099524,101950.0,101940.0,1.17727049]
[1747321024135,0.0099524,101950.0,101940.0,1.19180116]
[1747321024453,0.0099524,101950.0,101940.0,1.53898848]
[1747321025122,0.01976045,101950.0,101940.0,1.53898848]
[1747321025311,0.0099524,101950.0,101940.0,1.8861758]
[1747321025712,0.02956879,101950.0,101940.0,1.52444763]
[1747321025868,0.02956869,101950.0,101940.0,2.62444763]
[1747321026268,0.02956869,101950.0,101940.0,2.28444763]
[1747321027851,0.01976045,101950.0,101940.0,2.28444763]
[1747321028057,0.04918556,101950.0,101940.0,1.93726031]
[1747321028270,0.01976045,101950.0,101940.0,2.28444763]
[1747321028670,0.0099524,101950.0,101940.0,2.63163495]
[1747321028927,0.00014454,101950.0,101940.0,2.6461758]
[1747321029532,0.00014454,101950.0,101940.0,1.9554758]
[1747321029734,0.00014454,101950.0,101940.0,2.2954758]
[1747321029948,0.00014454,101950.0,101940.0,2.6354758]
[1747321030711,0.19623739,101990.0,101980.0,0.20592253]
[1747321030909,0.19623739,101990.0,101970.0,0.60231858]
[1747321030910,0.0294154,101980.0,101970.0,0.60231858]
[1747321031196,0.01961004,101980.0,101970.0,1.7126953]
[1747321031551,0.4477466,101990.0,101980.0,0.21572827]
[1747321031552,0.22571527,101990.0,101980.0,0.21572827]
[1747321031855,0.47704015,101990.0,101980.0,0.31303767]
[1747321032075,0.47704015,101990.0,101980.0,0.75753439]
[1747321032258,0.46723604,101990.0,101980.0,0.75753439]
[1747321032667,0.46723604,101990.0,101980.0,0.82945252]
[1747321032872,0.46723604,101990.0,101980.0,1.1864451]
[1747321033423,0.46723604,101990.0,101980.0,1.17663984]
[1747321033577,0.46723604,101990.0,101980.0,1.16683439]
[1747321033786,0.44762705,101990.0,101980.0,0.6039188]
[1747321034025,0.44762705,101990.0,101980.0,0.8461188]
[1747321034219,0.44762705,101990.0,101980.0,1.04223568]
[1747321034664,0.44762705,101990.0,101980.0,1.05204152]
[1747321034862,0.44762705,101990.0,101980.0,1.41884003]
[1747321035010,0.44762705,101990.0,101980.0,1.40903458]
[1747321036059,0.44762705,101990.0,101980.0,1.39922884]
[1747321036469,0.44762705,101990.0,101980.0,1.40885222]
[1747321036642,0.44762705,101990.0,101980.0,1.0616649]
[1747321036843,0.44762705,101990.0,101980.0,1.08127629]
[1747321037449,0.43782217,101990.0,101980.0,0.75843278]
[1747321037688,0.43746217,101990.0,101980.0,1.31154272]
[1747321038054,0.43746217,101990.0,101980.0,1.32134837]
[1747321038257,0.43746217,101990.0,101980.0,1.1056201]
[1747321038466,0.43746217,101990.0,101980.0,0.5066094]
[1747321038669,0.19630217,101990.0,101980.0,0.5066094]
[1747321038867,0.47712217,101990.0,101980.0,0.4093]
[1747321039078,0.58502253,101980.0,101970.0,0.4093]
[1747321039277,0.58502253,101980.0,101970.0,0.65146]
[1747321039553,0.58502253,101980.0,101970.0,0.24216]
[1747321040002,0.23538467,101960.0,101950.0,1.05849981]
[1747321040215,0.46661777,101960.0,101950.0,1.48547008]
[1747321040413,0.46661777,101960.0,101950.0,1.49527852]
[1747321040610,0.46661777,101960.0,101950.0,1.50508686]
[1747321041028,0.46661777,101960.0,101950.0,1.47566145]
[1747321041231,0.46661777,101960.0,101950.0,1.1723694]
[1747321041396,0.45681058,101960.0,101950.0,1.1723694]
[1747321041726,0.45681058,101960.0,101950.0,1.07506]
[1747321042739,0.45681058,101960.0,101950.0,1.07606]
[1747321043218,0.47631058,101960.0,101950.0,1.07606]
[1747321043627,0.47631058,101960.0,101950.0,0.8339]
[1747321043870,0.47631058,101960.0,101950.0,1.07606]
[1747321043871,0.45681058,101960.0,101950.0,1.07606]
[1747321044082,0.45681058,101960.0,101950.0,1.1733694]
[1747321044294,0.47721058,101960.0,101950.0,1.1733694]
[1747321044466,0.49751058,101960.0,101950.0,1.07606]
[1747321044687,0.83751058,101960.0,101950.0,0.24316]
[1747321044872,0.83751058,101960.0,101950.0,0.00104]
[1747321045240,0.93481998,101960.0,101950.0,0.00104]
[1747321045441,0.93481998,101960.0,101950.0,4e-05]
[1747321045845,0.93681998,101960.0,101950.0,4e-05]
[1747321046046,0.93481998,101960.0,101950.0,4e-05]
[1747321046448,0.93681998,101960.0,101950.0,4e-05]
[1747321048369,0.55777058,101960.0,101950.0,4e-05]
[1747321048513,0.79845058,101960.0,101950.0,4e-05]
[1747321049676,0.83865058,101960.0,101950.0,4e-05]
[1747321050303,0.93595998,101960.0,101950.0,4e-05]
[1747321052608,0.55777058,101960.0,101950.0,4e-05]
[1747321052865,2.55777058,101960.0,101950.0,4e-05]
[1747321053040,2.79821058,101960.0,101950.0,4e-05]
[1747321053853,2.55777058,101960.0,101950.0,4e-05]
[1747321054057,2.45817058,101960.0,101950.0,4e-05]
[1747321055871,2.45817058,101960.0,101950.0,0.40934]
[1747321056090,2.45817058,101960.0,101950.0,0.4968457]
[1747321057069,2.93477998,101960.0,101950.0,0.40934]
[1747321058105,2.99382998,101960.0,101950.0,0.40526]
[1747321062002,0.53619218,101950.0,101930.0,0.52207575]
[1747321062231,0.47543075,101940.0,101930.0,0.73789225]
[1747321062445,0.45581282,101940.0,101930.0,0.52207575]
[1747321062710,0.44600342,101940.0,101930.0,0.40526]
[1747321063157,0.44600342,101940.0,101930.0,0.5025694]
[1747321063370,0.44600342,101940.0,101930.0,0.50271394]
[1747321063574,0.44600342,101940.0,101930.0,0.40540454]
[1747321064206,0.44592342,101940.0,101930.0,0.40540454]
[1747321064334,0.44592342,101940.0,101930.0,0.42480454]
[1747321064762,0.44592342,101940.0,101930.0,0.40540454]
[1747321064970,0.44592342,101940.0,101930.0,0.50271394]
[1747321065397,0.44592342,101940.0,101930.0,0.40540454]
[1747321065635,0.44584342,101940.0,101930.0,0.44420454]
[1747321066387,0.44584342,101940.0,101930.0,0.40540454]
[1747321066790,0.44584342,101940.0,101930.0,0.60161762]
[1747321067053,0.44584342,101940.0,101930.0,0.61142827]
[1747321067260,0.44584342,101940.0,101930.0,0.64073882]
[1747321067581,0.20600342,101940.0,101930.0,0.64073882]
[1747321067786,0.20600342,101940.0,101930.0,0.77117111]
[1747321067787,0.2593385,101940.0,101930.0,0.77117111]
[1747321068364,0.475152,101940.0,101930.0,0.75155125]
[1747321068567,0.475152,101940.0,101930.0,0.76136142]
[1747321068768,0.475152,101940.0,101930.0,0.77117149]
[1747321069208,0.26914848,101940.0,101930.0,0.78098147]
[1747321069409,0.26914848,101940.0,101930.0,1.21566716]
[1747321069410,0.01961812,101940.0,101930.0,1.21566716]
[1747321069615,0.02942742,101940.0,101930.0,1.21566716]
[1747321069728,0.27887691,101940.0,101930.0,0.86847984]
[1747321070200,0.47507074,101940.0,101930.0,0.85867006]
[1747321070586,0.27887691,101940.0,101930.0,0.85867006]
[1747321070760,0.47507142,101940.0,101930.0,0.84886047]
[1747321071449,0.46526173,101940.0,101930.0,0.85867054]
[1747321071653,0.47507142,101940.0,101930.0,0.85867054]
[1747321072625,0.47507142,101940.0,101930.0,0.86848052]
[1747321072825,0.2690679,101940.0,101930.0,0.86848052]
[1747321073414,0.01961841,101940.0,101930.0,1.21566784]
[1747321073637,0.25905793,101940.0,101930.0,1.21566784]
[1747321074208,0.26886714,101940.0,101930.0,1.21566784]
[1747321074644,0.27867654,101940.0,101930.0,1.21566784]
[1747321074997,0.27867654,101940.0,101930.0,1.10924052]
[1747321075236,0.28848603,101940.0,101930.0,1.10924052]
[1747321076353,0.28848603,101940.0,101930.0,1.11903047]
[1747321076480,0.27867654,101940.0,101930.0,1.11903047]
[1747321076698,0.23944,101940.0,101930.0,1.46621779]
[1747321077072,0.24418004,101950.0,101940.0,0.26402193]
[1747321077285,0.23437208,101950.0,101940.0,0.35152231]
[1747321077501,0.4834208,101950.0,101940.0,0.37114092]
[1747321078175,0.46380422,101950.0,101940.0,0.36133171]
[1747321078347,0.46380422,101950.0,101940.0,0.37114092]
[1747321078556,0.46580422,101950.0,101940.0,0.37114092]
[1747321078786,0.46580422,101950.0,101940.0,0.36133171]
[1747321079932,0.46580422,101950.0,101940.0,0.77640092]
[1747321080151,0.46580422,101950.0,101940.0,0.76659171]
[1747321080564,0.46580422,101950.0,101940.0,0.77640101]
[1747321080814,0.46580422,101950.0,101940.0,0.74697282]
[1747321081049,0.46580422,101950.0,101940.0,0.75678231]
[1747321081600,0.46580422,101950.0,101940.0,0.78621002]
[1747321081938,0.46580422,101950.0,101940.0,0.77640101]
[1747321082819,0.45599569,101950.0,101940.0,0.7418094]
[1747321083029,0.45599569,101950.0,101940.0,0.6445]
[1747321083247,0.25001238,101950.0,101940.0,0.91012173]
[1747321083473,0.01077238,101950.0,101940.0,0.85204905]
[1747321083696,0.24969238,101950.0,101940.0,1.00743113]
[1747321083907,0.24969238,101950.0,101940.0,1.35465845]
[1747321084118,0.24969238,101950.0,101940.0,1.45196785]
[1747321084746,0.24092,101950.0,101940.0,1.45196785]
[1747321085525,0.27034445,101950.0,101940.0,1.10478053]
[1747321085746,0.46651904,101950.0,101940.0,1.00747133]
[1747321085956,0.27034445,101950.0,101940.0,0.92978005]
[1747321086187,0.28015298,101950.0,101940.0,0.51471094]
[1747321086387,0.27815298,101950.0,101940.0,0.51471094]
[1747321086604,0.4841362,101950.0,101940.0,0.51467094]
[1747321087321,0.27815298,101950.0,101940.0,0.51467094]
[1747321087527,0.27815298,101950.0,101940.0,0.61198034]
[1747321087931,6.0570369,101950.0,101940.0,4e-05]
[1747321088274,6.07157775,101950.0,101940.0,4e-05]
[1747321088757,6.10103175,101950.0,101940.0,4e-05]
[1747321090237,6.10303175,101950.0,101940.0,4e-05]
[1747321090440,5.786196,101950.0,101940.0,4e-05]
[1747321090650,0.93080115,101950.0,101940.0,4e-05]
[1747321092047,0.59489175,101950.0,101940.0,4e-05]
[1747321092211,0.45631175,101950.0,101940.0,4e-05]
[1747321092655,0.45631175,101950.0,101940.0,0.23928]
[1747321092814,0.45631175,101950.0,101940.0,0.32122469]
[1747321093015,0.45627175,101950.0,101940.0,0.32122469]
[1747321093221,0.45627175,101950.0,101940.0,0.51741852]
[1747321093428,0.24828824,101950.0,101940.0,0.94710623]
[1747321093630,0.01961677,101950.0,101940.0,0.94710623]
[1747321093830,0.2600562,101950.0,101940.0,1.29429355]
[1747321094073,0.26986473,101950.0,101940.0,1.29429355]
[1747321094279,0.2600562,101950.0,101940.0,1.29429355]
[1747321094690,0.26986473,101950.0,101940.0,0.94710623]
[1747321094913,0.26005611,101950.0,101940.0,0.94710623]
[1747321095393,0.27959288,101950.0,101940.0,0.94710623]
[1747321095621,0.47576747,101950.0,101940.0,0.94710623]
[1747321095826,0.27959288,101950.0,101940.0,0.94710623]
[1747321097306,0.28940151,101950.0,101940.0,0.94710623]
[1747321098066,0.27959288,101950.0,101940.0,0.94714623]
[1747321099038,0.28940151,101950.0,101940.0,0.94714623]
[1747321099240,0.24036,101950.0,101940.0,0.94714623]
[1747321099405,0.26978425,101950.0,101940.0,0.94714623]
[1747321099605,0.26954425,101950.0,101940.0,0.94714623]
[1747321099795,0.27935278,101950.0,101940.0,0.94714623]
[1747321100832,0.28916141,101950.0,101940.0,0.94714623]
[1747321101504,0.28916141,101950.0,101940.0,0.89279253]
[1747321101505,0.47552814,101950.0,101940.0,0.89279253]
[1747321101702,0.46572009,101950.0,101940.0,0.89279272]
[1747321101906,0.46572009,101950.0,101940.0,0.90752183]
[1747321102587,0.46572009,101950.0,101940.0,0.67813084]
[1747321102728,0.46572009,101950.0,101940.0,0.91733084]
[1747321103088,0.46572009,101950.0,101940.0,1.00483123]
[1747321103089,0.47552881,101950.0,101940.0,1.00483123]
[1747321104722,0.27935422,101950.0,101940.0,1.01464024]
[1747321104927,0.25973687,101950.0,101940.0,1.01464024]
[1747321105172,0.46572018,101950.0,101940.0,0.99502212]
[1747321105368,0.46572018,101950.0,101940.0,1.00483133]
[1747321105567,0.45591184,101950.0,101940.0,0.5026094]
[1747321105777,0.44610331,101950.0,101940.0,0.93800323]
[1747321106083,0.44610331,101950.0,101940.0,0.6445]
[1747321106378,0.44610331,101950.0,101940.0,0.84069383]
[1747321107762,0.44610331,101950.0,101940.0,0.85050342]
[1747321108640,0.44610331,101950.0,101940.0,0.6445]
[1747321108842,0.43629459,101950.0,101940.0,0.6445]
[1747321109045,0.57310399,101950.0,101940.0,0.6445]
[1747321109216,0.43629459,101950.0,101940.0,0.64294]
[1747321109834,0.47519459,101950.0,101940.0,0.64294]
[1747321111634,0.43629459,101950.0,101940.0,0.64294]
[1747321112368,0.43629459,101950.0,101940.0,0.66224]
[1747321112763,0.43629459,101950.0,101940.0,0.75497478]
[1747321113156,0.19817459,101950.0,101940.0,0.73567478]
[1747321113368,0.44538312,101950.0,101940.0,0.9908875]
[1747321114725,0.44538312,101950.0,101940.0,0.9810782]
[1747321115074,0.4649998,101950.0,101940.0,1.00069671]
[1747321115283,0.47480776,101950.0,101940.0,1.00069671]
[1747321115499,0.4649998,101950.0,101940.0,0.9908876]
[1747321115705,0.4649998,101950.0,101940.0,1.0006969]
[1747321115919,0.45519156,101950.0,101940.0,0.9810782]
[1747321116146,0.43557459,101950.0,101940.0,0.9810781]
[1747321116470,0.43557459,101950.0,101940.0,0.9908875]
[1747321117085,0.43557459,101950.0,101940.0,0.89815272]
[1747321117985,0.43557459,101950.0,101940.0,0.68234]
[1747321118187,0.43557459,101950.0,101940.0,0.64294]
[1747321118594,0.91268399,101950.0,101940.0,0.4053]
[1747321118974,0.91268399,101950.0,101940.0,4e-05]
[1747321118975,0.99059974,101950.0,101940.0,4e-05]
[1747321119251,6.09964974,101950.0,101940.0,4e-05]
[1747321119388,6.11419059,101950.0,101940.0,4e-05]
[1747321119590,6.14532178,101950.0,101940.0,4e-05]
[1747321120040,6.03427484,101950.0,101940.0,4e-05]
[1747321120383,6.03627484,101950.0,101940.0,4e-05]
[1747321120581,6.03427484,101950.0,101940.0,4e-05]
[1747321120984,6.03627484,101950.0,101940.0,4e-05]
[1747321122022,6.04627484,101950.0,101940.0,4e-05]
[1747321123178,5.98722484,101950.0,101940.0,4e-05]
[1747321127240,5.97722484,101950.0,101940.0,4e-05]
[1747321127437,0.92658484,101950.0,101940.0,4e-05]
[1747321127741,0.68982484,101950.0,101940.0,4e-05]
[1747321127941,0.92658484,101950.0,101940.0,4e-05]
[1747321130240,0.68982484,101950.0,101940.0,4e-05]
[1747321130518,0.92646484,101950.0,101940.0,4e-05]
[1747321131047,0.53208399,101950.0,101940.0,4e-05]
[1747321131241,0.43375259,101950.0,101940.0,0.03834]
[1747321132982,0.43175259,101950.0,101940.0,0.03834]
[1747321133371,0.19915259,101950.0,101940.0,0.03834]
[1747321133577,0.43563259,101950.0,101940.0,0.24434352]
[1747321133791,0.43563259,101950.0,101940.0,0.76653181]
[1747321133792,0.45627117,101950.0,101940.0,0.76653181]
[1747321134040,0.4660798,101950.0,101940.0,0.75672251]
[1747321134258,0.4660798,101950.0,101940.0,0.77634121]
[1747321134453,0.4660798,101950.0,101940.0,0.7763414]
[1747321134682,0.45227156,101950.0,101940.0,0.7763414]
[1747321134885,0.44446322,101950.0,101940.0,0.766532]
[1747321136557,0.44446322,101950.0,101940.0,0.75672251]
[1747321136759,0.45411156,101950.0,101940.0,0.76653191]
[1747321137976,0.45411156,101950.0,101940.0,0.75672251]
[1747321138192,0.44430322,101950.0,101940.0,0.74691292]
[1747321139314,0.21779156,101950.0,101940.0,0.75672241]
[1747321139515,0.46380028,101950.0,101940.0,0.75672241]
[1747321139717,0.45399194,101950.0,101940.0,0.75672241]
[1747321140476,0.45399194,101950.0,101940.0,0.77634111]
[1747321140698,0.45399194,101950.0,101940.0,0.76653181]
[1747321140904,0.44418331,101950.0,101940.0,0.75672241]
[1747321141536,0.43437459,101950.0,101940.0,1.18048241]
[1747321143624,0.43437459,101950.0,101940.0,1.17067292]
[1747321145405,0.43437459,101950.0,101940.0,0.9646694]
[1747321149787,0.43437459,101950.0,101940.0,1.2008294]
[1747321154520,0.43437459,101950.0,101940.0,0.7770694]
[1747321155910,0.25693658,101950.0,101940.0,1.34006964]
[1747321156105,0.4629197,101950.0,101940.0,1.34987894]
[1747321156435,0.4629197,101950.0,101940.0,0.99288251]
[1747321156956,0.4629197,101950.0,101940.0,1.002692]
[1747321159560,0.45311146,101950.0,101940.0,0.7770694]
[1747321159931,0.45311146,101950.0,101940.0,0.99288212]
[1747321160134,0.45311146,101950.0,101940.0,0.98307282]
[1747321160345,0.46292018,101950.0,101940.0,0.99288231]
[1747321160735,0.22760018,101950.0,101940.0,0.98307282]
[1747321160940,0.47131938,101950.0,101940.0,1.00269161]
[1747321161127,0.47131938,101950.0,101940.0,0.99288231]
[1747321161331,0.47131938,101950.0,101940.0,0.98307282]
[1747321161549,0.46264018,101950.0,101940.0,0.99288231]
[1747321161732,0.46264018,101950.0,101940.0,1.00269171]
[1747321161944,0.46260018,101950.0,101940.0,1.01250092]
[1747321162199,0.002,101950.0,101940.0,1.36949734]
[1747321162469,0.02161601,101950.0,101940.0,1.46680674]
[1747321162652,0.01180786,101950.0,101940.0,1.46680674]
[1747321162872,0.02161591,101950.0,101940.0,1.46680674]
[1747321163087,0.01180786,101950.0,101940.0,1.46680674]
[1747321163318,0.03142435,101950.0,101940.0,1.46680674]
[1747321163543,0.02161591,101950.0,101940.0,1.46680674]
[1747321164633,0.002,101950.0,101940.0,1.81399406]
[1747321164850,0.002,101950.0,101940.0,1.46680674]
[1747321165512,2.0,101960.0,101950.0,0.26279961]
[1747321165721,2.0,101960.0,101950.0,0.45741841]
[1747321165936,2.0,101960.0,101950.0,0.80460573]
[1747321166859,2.0,101960.0,101950.0,1.20986573]
[1747321166860,2.001,101960.0,101950.0,1.20986573]
[1747321168187,2.001,101960.0,101950.0,1.54986573]
[1747321168434,2.001,101960.0,101950.0,2.59510658]
[1747321168891,2.001,101960.0,101950.0,2.26514323]
[1747321169123,2.0,101960.0,101950.0,2.26514323]
[1747321169372,2.0,101960.0,101950.0,2.60514323]
[1747321169572,2.0,101960.0,101950.0,2.61014323]
[1747321172201,2.0,101960.0,101950.0,2.72014323]
[1747321175845,1.59474,101960.0,101950.0,2.31488323]
[1747321177177,1.59474,101960.0,101950.0,2.54940323]
[1747321181846,1.18544,101960.0,101950.0,2.95870323]
[1747321184921,1.18544,101960.0,101950.0,2.37699591]
[1747321185099,1.18544,101960.0,101950.0,3.02049506]
[1747321185301,1.18544,101960.0,101950.0,3.02768238]
[1747321185479,1.18544,101960.0,101950.0,3.36768238]
[1747321187980,1.18544,101960.0,101950.0,3.38222323]
[1747321187984,1.18544,101960.0,101950.0,2.69152323]
[1747321192457,1.06861886,101960.0,101950.0,3.73941055]
[1747321192664,1.04382689,101960.0,101950.0,3.39222323]
[1747321193666,1.04382689,101960.0,101950.0,3.15770323]
[1747321193874,1.04382689,101960.0,101950.0,3.39222323]
[1747321194237,0.42319817,101960.0,101950.0,3.39222323]
[1747321195414,0.35288344,101960.0,101950.0,3.39222323]
[1747321196826,0.11719257,101990.0,101980.0,0.02941636]
[1747321197016,0.11719257,101990.0,101980.0,0.44093706]
[1747321197273,0.11719257,101990.0,101980.0,0.63705394]
[1747321197817,0.15759325,101990.0,101980.0,0.63705394]
[1747321198021,0.07972568,101990.0,101980.0,0.63705394]
[1747321198197,0.08172568,101990.0,101980.0,0.63705394]
[1747321199130,0.09153046,101990.0,101980.0,0.63705394]
[1747321199339,0.277824,101990.0,101980.0,0.62724877]
[1747321199595,0.277824,101990.0,101980.0,0.63705403]
[1747321200396,0.25821549,101990.0,101980.0,0.42348]
[1747321200613,0.25821549,101990.0,101980.0,0.65624]
[1747321201265,0.26719343,101990.0,101980.0,0.23276]
[1747321202107,0.49983343,101990.0,101980.0,0.23276]
[1747321202533,0.93714283,101990.0,101980.0,0.23276]
[1747321202729,1.03445223,101990.0,101980.0,0.23276]
[1747321203086,0.93714283,101990.0,101980.0,0.23276]
[1747321204019,0.92816489,101990.0,101980.0,0.23276]
[1747321206045,0.21576944,101960.0,101950.0,0.75642614]
[1747321206267,0.46778467,101960.0,101950.0,0.99903438]
[1747321206628,0.46778467,101960.0,101950.0,1.00884253]
[1747321206828,0.46778467,101960.0,101950.0,1.00888253]
[1747321206995,0.46778467,101960.0,101950.0,1.00888186]
[1747321207200,0.27162894,101960.0,101950.0,1.01388186]
[1747321207409,0.28143661,101960.0,101950.0,1.01388186]
[1747321207605,0.04903661,101960.0,101950.0,1.01388186]
[1747321207792,0.04903661,101960.0,101950.0,0.33794566]
[1747321207793,0.23538506,101960.0,101950.0,0.33794566]
[1747321207975,0.22557787,101960.0,101950.0,0.57074604]
[1747321208180,0.22557787,101960.0,101950.0,0.5589378]
[1747321208380,0.23538563,101960.0,101950.0,0.56974604]